[Event "Titled Tuesday Blitz June 20 Early 2023"]
[White "Vila Dupla, Aurelio"]
[Black "Zheenbekov, Nurgazy"]
[WhiteFideId "2203383"]
[BlackFideId "13800485"]
[WhiteElo "2009"]
[BlackElo "1975"]
[Result "0-1"]
[Round "6"]
[TimeControl "180+2"]
[Date "2023.06.20"]
[WhiteClock "0:00:00"]
[BlackClock "0:00:18"]
[Board "176"]

1. Nf3 {[%clk 0:03:00]}  Nf6 {[%clk 0:02:58]} 2. d4 {[%clk 0:03:00]}  d5 {[%clk 0:02:58]} 3. c4 {[%clk 0:02:59]}  e6 {[%clk 0:02:58]} 4. cxd5 {[%clk 0:02:59]}  exd5 {[%clk 0:02:58]} 5. Nc3 {[%clk 0:03:00]}  Be7 {[%clk 0:02:56]} 6. Qc2 {[%clk 0:02:59]}  O-O {[%clk 0:02:56]} 7. Bg5 {[%clk 0:02:59]}  h6 {[%clk 0:02:54]} 8. Bh4 {[%clk 0:02:58]}  c6 {[%clk 0:02:52]} 9. e3 {[%clk 0:02:58]}  Nbd7 {[%clk 0:02:52]} 10. Bd3 {[%clk 0:02:58]}  Re8 {[%clk 0:02:52]} 11. O-O-O {[%clk 0:02:56]}  b5 {[%clk 0:02:42]} 12. Kb1 {[%clk 0:02:55]}  a5 {[%clk 0:02:42]} 13. Ne2 {[%clk 0:02:55]}  Bb7 {[%clk 0:02:38]} 14. Rc1 {[%clk 0:02:55]}  a4 {[%clk 0:02:34]} 15. Ne5 {[%clk 0:02:51]}  a3 {[%clk 0:02:30]} 16. b3 {[%clk 0:02:49]}  Rc8 {[%clk 0:02:28]} 17. Bf5 {[%clk 0:02:46]}  Rc7 {[%clk 0:02:20]} 18. Bg3 {[%clk 0:02:19]}  Nxe5 {[%clk 0:02:19]} 19. dxe5 {[%clk 0:02:18]}  Ne4 {[%clk 0:02:15]} 20. e6 {[%clk 0:02:16]}  fxe6 {[%clk 0:02:08]} 21. Bxc7 {[%clk 0:02:09]}  Qxc7 {[%clk 0:02:08]} 22. Bxe4 {[%clk 0:02:02]}  dxe4 {[%clk 0:02:07]} 23. Nd4 {[%clk 0:02:02]}  Bf6 {[%clk 0:02:01]} 24. Rhd1 {[%clk 0:01:48]}  Qxh2 {[%clk 0:01:57]} 25. g3 {[%clk 0:01:45]}  Qh5 {[%clk 0:01:53]} 26. Qc5 {[%clk 0:01:36]}  Qg4 {[%clk 0:01:50]} 27. Qb6 {[%clk 0:01:27]}  Ba8 {[%clk 0:01:48]} 28. Qc7 {[%clk 0:01:15]}  Kh8 {[%clk 0:01:33]} 29. Nxc6 {[%clk 0:01:10]}  Bxc6 {[%clk 0:01:29]} 30. Qxc6 {[%clk 0:01:09]}  Rb8 {[%clk 0:01:23]} 31. Qc7 {[%clk 0:01:06]}  Re8 {[%clk 0:01:18]} 32. Rd7 {[%clk 0:00:52]}  Qe2 {[%clk 0:01:11]} 33. Qc2 {[%clk 0:00:51]}  Qh5 {[%clk 0:01:08]} 34. Qxe4 {[%clk 0:00:43]}  Qe2 {[%clk 0:00:46]} 35. Qc2 {[%clk 0:00:42]}  Qh5 {[%clk 0:00:46]} 36. f4 {[%clk 0:00:36]}  e5 {[%clk 0:00:41]} 37. Rc7 {[%clk 0:00:35]}  exf4 {[%clk 0:00:40]} 38. gxf4 {[%clk 0:00:35]}  Bb2 {[%clk 0:00:31]} 39. Rd1 {[%clk 0:00:19]}  Qg4 {[%clk 0:00:29]} 40. Qd3 {[%clk 0:00:14]}  Rxe3 {[%clk 0:00:26]} 41. Qd8+ {[%clk 0:00:12]}  Kh7 {[%clk 0:00:25]} 42. Rc8 {[%clk 0:00:13]}  Qf5+ {[%clk 0:00:22]} 43. Rc2 {[%clk 0:00:10]}  Re2 {[%clk 0:00:19]} 44. Qd3 {[%clk 0:00:09]}  Qxd3 {[%clk 0:00:18]} 45. Rxd3 {[%clk 0:00:00]}  Re1+ {[%clk 0:00:18]} 0-1


[Site "https://www.chess.com"]

[Event "Titled Tuesday Blitz June 20 Early 2023"]
[White "Fudalej, Michal"]
[Black "Vafin, Ayrat"]
[WhiteFideId "1118781"]
[BlackFideId "4146530"]
[WhiteElo "2088"]
[BlackElo "2317"]
[Result "1-0"]
[Round "6"]
[TimeControl "180+2"]
[Date "2023.06.20"]
[WhiteClock "0:00:23"]
[BlackClock "0:00:00"]
[Board "177"]

1. Nf3 {[%clk 0:03:00]}  d5 {[%clk 0:03:00]} 2. g3 {[%clk 0:03:00]}  Nf6 {[%clk 0:03:00]} 3. Bg2 {[%clk 0:03:00]}  Bg4 {[%clk 0:03:01]} 4. b3 {[%clk 0:03:00]}  Nbd7 {[%clk 0:03:01]} 5. Bb2 {[%clk 0:03:00]}  Bxf3 {[%clk 0:03:00]} 6. Bxf3 {[%clk 0:02:59]}  e5 {[%clk 0:03:01]} 7. Bg2 {[%clk 0:03:00]}  Bd6 {[%clk 0:03:00]} 8. d3 {[%clk 0:02:59]}  c6 {[%clk 0:03:01]} 9. Nd2 {[%clk 0:02:56]}  O-O {[%clk 0:03:00]} 10. O-O {[%clk 0:02:56]}  a5 {[%clk 0:03:00]} 11. a3 {[%clk 0:02:55]}  Re8 {[%clk 0:02:56]} 12. e4 {[%clk 0:02:50]}  Bc5 {[%clk 0:02:48]} 13. Re1 {[%clk 0:02:39]}  Qb6 {[%clk 0:02:45]} 14. Qe2 {[%clk 0:02:18]}  h5 {[%clk 0:02:42]} 15. Bf3 {[%clk 0:02:04]}  Ng4 {[%clk 0:02:11]} 16. Rf1 {[%clk 0:01:58]}  g6 {[%clk 0:01:40]} 17. Bxg4 {[%clk 0:01:53]}  hxg4 {[%clk 0:01:40]} 18. Qxg4 {[%clk 0:01:54]}  Nf6 {[%clk 0:01:41]} 19. Qg5 {[%clk 0:01:49]}  Nh7 {[%clk 0:01:25]} 20. Qh6 {[%clk 0:01:39]}  Rad8 {[%clk 0:01:09]} 21. Rae1 {[%clk 0:01:36]}  a4 {[%clk 0:00:53]} 22. b4 {[%clk 0:01:32]}  Bf8 {[%clk 0:00:53]} 23. Qh3 {[%clk 0:01:17]}  c5 {[%clk 0:00:47]} 24. exd5 {[%clk 0:01:11]}  cxb4 {[%clk 0:00:46]} 25. Nc4 {[%clk 0:00:59]}  Qb5 {[%clk 0:00:38]} 26. axb4 {[%clk 0:00:36]}  Qxd5 {[%clk 0:00:00]} 27. Rxe5 {[%clk 0:00:23]} 1-0


[Site "https://www.chess.com"]

[Event "Titled Tuesday Blitz June 20 Early 2023"]
[White "Rosenberg, Evan S"]
[Black "Politov, Pavel Y."]
[WhiteFideId "2019299"]
[BlackFideId "24110515"]
[WhiteElo "2340"]
[BlackElo "2066"]
[Result "1-0"]
[Round "6"]
[TimeControl "180+2"]
[Date "2023.06.20"]
[WhiteClock "0:02:16"]
[BlackClock "0:01:30"]
[Board "180"]

1. d4 {[%clk 0:03:00]}  d5 {[%clk 0:02:58]} 2. Nf3 {[%clk 0:03:00]}  Nf6 {[%clk 0:02:58]} 3. Bg5 {[%clk 0:03:01]}  Ne4 {[%clk 0:02:57]} 4. Bh4 {[%clk 0:03:01]}  c5 {[%clk 0:02:51]} 5. e3 {[%clk 0:03:01]}  Nc6 {[%clk 0:02:50]} 6. Nc3 {[%clk 0:02:56]}  Nxc3 {[%clk 0:02:46]} 7. bxc3 {[%clk 0:02:56]}  Qa5 {[%clk 0:02:44]} 8. Qd2 {[%clk 0:02:48]}  cxd4 {[%clk 0:02:37]} 9. cxd4 {[%clk 0:02:48]}  Qxd2+ {[%clk 0:02:36]} 10. Kxd2 {[%clk 0:02:47]}  Bg4 {[%clk 0:02:35]} 11. Be2 {[%clk 0:02:46]}  e6 {[%clk 0:02:33]} 12. Rab1 {[%clk 0:02:44]}  b6 {[%clk 0:02:17]} 13. Bb5 {[%clk 0:02:42]}  Rc8 {[%clk 0:01:58]} 14. Ne5 {[%clk 0:02:42]}  Bf5 {[%clk 0:01:46]} 15. Bxc6+ {[%clk 0:02:34]}  Rxc6 {[%clk 0:01:44]} 16. Nxc6 {[%clk 0:02:34]}  f6 {[%clk 0:01:42]} 17. Nxa7 {[%clk 0:02:29]}  g5 {[%clk 0:01:41]} 18. Bg3 {[%clk 0:02:28]}  Be7 {[%clk 0:01:41]} 19. Rxb6 {[%clk 0:02:27]}  O-O {[%clk 0:01:41]} 20. Rb7 {[%clk 0:02:20]}  Kf7 {[%clk 0:01:39]} 21. Nc6 {[%clk 0:02:19]}  Re8 {[%clk 0:01:30]} 22. Bd6 {[%clk 0:02:16]} 1-0


[Site "https://www.chess.com"]

[Event "Titled Tuesday Blitz June 20 Early 2023"]
[White "Nikulina, Alena"]
[Black "Cardozo Munar, Carlos Eduardo"]
[WhiteFideId "4172051"]
[BlackFideId "4409477"]
[WhiteElo "1608"]
[BlackElo "2067"]
[Result "0-1"]
[Round "6"]
[TimeControl "180+2"]
[Date "2023.06.20"]
[WhiteClock "0:00:04"]
[BlackClock "0:00:12"]
[Board "182"]

1. e4 {[%clk 0:02:53]}  e6 {[%clk 0:02:42]} 2. d4 {[%clk 0:02:51]}  d5 {[%clk 0:02:42]} 3. exd5 {[%clk 0:02:51]}  exd5 {[%clk 0:02:42]} 4. c4 {[%clk 0:02:51]}  Nc6 {[%clk 0:02:41]} 5. Nf3 {[%clk 0:02:48]}  Nf6 {[%clk 0:02:40]} 6. Nc3 {[%clk 0:02:47]}  Bb4 {[%clk 0:02:38]} 7. Bd3 {[%clk 0:02:45]}  O-O {[%clk 0:02:37]} 8. O-O {[%clk 0:02:45]}  dxc4 {[%clk 0:02:37]} 9. Bxc4 {[%clk 0:02:45]}  Bg4 {[%clk 0:02:36]} 10. Be3 {[%clk 0:02:39]}  Re8 {[%clk 0:02:34]} 11. h3 {[%clk 0:02:37]}  Bh5 {[%clk 0:02:33]} 12. a3 {[%clk 0:02:20]}  Bd6 {[%clk 0:02:33]} 13. Re1 {[%clk 0:02:18]}  Qd7 {[%clk 0:02:29]} 14. b4 {[%clk 0:02:13]}  a6 {[%clk 0:02:29]} 15. Be2 {[%clk 0:02:09]}  Re7 {[%clk 0:02:21]} 16. d5 {[%clk 0:02:02]}  Bxf3 {[%clk 0:01:59]} 17. Bxf3 {[%clk 0:01:58]}  Ne5 {[%clk 0:01:59]} 18. Be2 {[%clk 0:01:54]}  Rae8 {[%clk 0:01:59]} 19. Bg5 {[%clk 0:01:47]}  Qf5 {[%clk 0:01:58]} 20. Bxf6 {[%clk 0:01:43]}  Qxf6 {[%clk 0:01:52]} 21. Ne4 {[%clk 0:01:42]}  Qg6 {[%clk 0:01:48]} 22. Nxd6 {[%clk 0:01:36]}  Qxd6 {[%clk 0:01:48]} 23. Qd2 {[%clk 0:01:32]}  Ng6 {[%clk 0:01:49]} 24. Rad1 {[%clk 0:01:30]}  Qe5 {[%clk 0:01:39]} 25. Bf3 {[%clk 0:01:29]}  Qxe1+ {[%clk 0:01:37]} 26. Rxe1 {[%clk 0:01:27]}  Rxe1+ {[%clk 0:01:38]} 27. Kh2 {[%clk 0:01:27]}  Ne5 {[%clk 0:01:31]} 28. Bd1 {[%clk 0:01:18]}  Nc4 {[%clk 0:01:18]} 29. Qc3 {[%clk 0:01:00]}  Nxa3 {[%clk 0:01:08]} 30. Qxa3 {[%clk 0:00:56]}  Rxd1 {[%clk 0:01:08]} 31. Qc3 {[%clk 0:00:53]}  Rxd5 {[%clk 0:01:05]} 32. Qxc7 {[%clk 0:00:52]}  Rb5 {[%clk 0:01:06]} 33. Qc4 {[%clk 0:00:49]}  g6 {[%clk 0:01:02]} 34. h4 {[%clk 0:00:47]}  Re6 {[%clk 0:01:00]} 35. Kg3 {[%clk 0:00:44]}  Rc6 {[%clk 0:00:54]} 36. Qd4 {[%clk 0:00:41]}  h5 {[%clk 0:00:40]} 37. Qd8+ {[%clk 0:00:40]}  Kg7 {[%clk 0:00:35]} 38. Qd4+ {[%clk 0:00:40]}  Rf6 {[%clk 0:00:33]} 39. f3 {[%clk 0:00:38]}  Rf5 {[%clk 0:00:31]} 40. Qe4 {[%clk 0:00:35]}  b6 {[%clk 0:00:25]} 41. Qc4 {[%clk 0:00:32]}  Rb5 {[%clk 0:00:23]} 42. Qd4 {[%clk 0:00:30]}  a5 {[%clk 0:00:22]} 43. bxa5 {[%clk 0:00:29]}  bxa5 {[%clk 0:00:23]} 44. Qa4 {[%clk 0:00:27]}  Rfb6 {[%clk 0:00:21]} 45. Qd4+ {[%clk 0:00:26]}  Kh7 {[%clk 0:00:21]} 46. Qc4 {[%clk 0:00:24]}  Rb7 {[%clk 0:00:21]} 47. Qa4 {[%clk 0:00:24]}  Rf5 {[%clk 0:00:19]} 48. Kh3 {[%clk 0:00:21]}  Rb4 {[%clk 0:00:20]} 49. Qd7 {[%clk 0:00:18]}  Rff4 {[%clk 0:00:18]} 50. Kg3 {[%clk 0:00:12]}  a4 {[%clk 0:00:17]} 51. Qd5 {[%clk 0:00:12]}  a3 {[%clk 0:00:16]} 52. Qa2 {[%clk 0:00:12]}  Ra4 {[%clk 0:00:16]} 53. Kh3 {[%clk 0:00:11]}  Kg8 {[%clk 0:00:16]} 54. Kg3 {[%clk 0:00:11]}  Rfb4 {[%clk 0:00:16]} 55. Qd5 {[%clk 0:00:10]}  a2 {[%clk 0:00:13]} 56. Qd8+ {[%clk 0:00:11]}  Kh7 {[%clk 0:00:13]} 57. Qd5 {[%clk 0:00:08]}  Rf4 {[%clk 0:00:13]} 58. Qe5 {[%clk 0:00:04]}  a1=Q {[%clk 0:00:12]} 0-1


[Site "https://www.chess.com"]

[Event "Titled Tuesday Blitz June 20 Early 2023"]
[White "Afanasieva, Alexandra"]
[Black "le-castor-faineant"]
[WhiteFideId "34126926"]
[WhiteElo "1736"]
[BlackElo "2149"]
[Result "0-1"]
[Round "6"]
[TimeControl "180+2"]
[Date "2023.06.20"]
[WhiteClock "0:00:17"]
[BlackClock "0:00:25"]
[Board "183"]

1. e4 {[%clk 0:02:59]}  e5 {[%clk 0:02:56]} 2. Nf3 {[%clk 0:03:00]}  Nf6 {[%clk 0:02:50]} 3. Nxe5 {[%clk 0:02:59]}  d6 {[%clk 0:02:50]} 4. Nf3 {[%clk 0:02:59]}  Nxe4 {[%clk 0:02:50]} 5. d4 {[%clk 0:03:00]}  d5 {[%clk 0:02:50]} 6. Bd3 {[%clk 0:03:01]}  Bf5 {[%clk 0:02:50]} 7. O-O {[%clk 0:02:59]}  Bd6 {[%clk 0:02:50]} 8. c4 {[%clk 0:02:57]}  c6 {[%clk 0:02:49]} 9. Nc3 {[%clk 0:02:57]}  O-O {[%clk 0:02:49]} 10. Qc2 {[%clk 0:02:52]}  Re8 {[%clk 0:02:38]} 11. Re1 {[%clk 0:02:49]}  Na6 {[%clk 0:02:38]} 12. a3 {[%clk 0:02:47]}  Nxc3 {[%clk 0:02:33]} 13. Bxf5 {[%clk 0:02:46]}  Rxe1+ {[%clk 0:02:31]} 14. Nxe1 {[%clk 0:02:47]}  Ne4 {[%clk 0:02:26]} 15. Bxe4 {[%clk 0:02:45]}  dxe4 {[%clk 0:02:26]} 16. Qxe4 {[%clk 0:02:46]}  Qa5 {[%clk 0:02:20]} 17. Bf4 {[%clk 0:02:39]}  Bxf4 {[%clk 0:02:13]} 18. Qxf4 {[%clk 0:02:40]}  Re8 {[%clk 0:02:13]} 19. Nf3 {[%clk 0:02:36]}  h6 {[%clk 0:02:09]} 20. h3 {[%clk 0:02:35]}  Qa4 {[%clk 0:02:06]} 21. Ne5 {[%clk 0:02:30]}  Re7 {[%clk 0:02:03]} 22. Qg4 {[%clk 0:02:26]}  Qb3 {[%clk 0:01:56]} 23. Qc8+ {[%clk 0:02:13]}  Kh7 {[%clk 0:01:53]} 24. Qf5+ {[%clk 0:02:13]}  Kg8 {[%clk 0:01:50]} 25. Re1 {[%clk 0:01:22]}  Qxb2 {[%clk 0:01:38]} 26. Re4 {[%clk 0:01:22]}  f6 {[%clk 0:01:23]} 27. Ng6 {[%clk 0:00:49]}  Qb1+ {[%clk 0:01:17]} 28. Kh2 {[%clk 0:00:47]}  Rxe4 {[%clk 0:01:07]} 29. Ne7+ {[%clk 0:00:32]}  Kf7 {[%clk 0:01:01]} 30. Nc8 {[%clk 0:00:32]}  Re1 {[%clk 0:00:44]} 31. Qd7+ {[%clk 0:00:32]}  Kg6 {[%clk 0:00:41]} 32. Nd6 {[%clk 0:00:29]}  Rh1+ {[%clk 0:00:38]} 33. Kg3 {[%clk 0:00:29]}  Qd3+ {[%clk 0:00:37]} 34. f3 {[%clk 0:00:29]}  Re1 {[%clk 0:00:29]} 35. Qf7+ {[%clk 0:00:27]}  Kh7 {[%clk 0:00:25]} 36. Ne8 {[%clk 0:00:17]}  Qg6+ {[%clk 0:00:25]} 0-1


[Site "https://www.chess.com"]

[Event "Titled Tuesday Blitz June 20 Early 2023"]
[White "Martin, Lewis"]
[Black "Hartikainen, Jarmo"]
[WhiteFideId "410551"]
[BlackFideId "503134"]
[WhiteElo "2145"]
[BlackElo "2143"]
[Result "0-1"]
[Round "6"]
[TimeControl "180+2"]
[Date "2023.06.20"]
[WhiteClock "0:01:26"]
[BlackClock "0:00:49"]
[Board "184"]

1. e4 {[%clk 0:02:47]}  c5 {[%clk 0:02:59]} 2. Nf3 {[%clk 0:02:46]}  Nc6 {[%clk 0:02:59]} 3. d4 {[%clk 0:02:46]}  cxd4 {[%clk 0:02:59]} 4. Nxd4 {[%clk 0:02:46]}  Nf6 {[%clk 0:03:00]} 5. Nc3 {[%clk 0:02:46]}  d6 {[%clk 0:03:00]} 6. Be2 {[%clk 0:02:44]}  e5 {[%clk 0:03:00]} 7. Ndb5 {[%clk 0:02:40]}  a6 {[%clk 0:02:59]} 8. Na3 {[%clk 0:02:40]}  b5 {[%clk 0:02:57]} 9. Nd5 {[%clk 0:02:34]}  Be6 {[%clk 0:02:56]} 10. Bg5 {[%clk 0:02:31]}  Be7 {[%clk 0:02:56]} 11. Bxf6 {[%clk 0:02:27]}  Bxf6 {[%clk 0:02:51]} 12. c4 {[%clk 0:02:25]}  b4 {[%clk 0:02:43]} 13. Nxb4 {[%clk 0:02:15]}  Qa5 {[%clk 0:02:06]} 14. O-O {[%clk 0:02:06]}  Qxb4 {[%clk 0:01:55]} 15. Nc2 {[%clk 0:02:01]}  Qc5 {[%clk 0:01:54]} 16. a3 {[%clk 0:01:55]}  Nd4 {[%clk 0:01:33]} 17. Ne3 {[%clk 0:01:47]}  O-O {[%clk 0:01:18]} 18. b4 {[%clk 0:01:46]}  Nxe2+ {[%clk 0:01:18]} 19. Qxe2 {[%clk 0:01:45]}  Qd4 {[%clk 0:01:18]} 20. Rad1 {[%clk 0:01:40]}  Qxe4 {[%clk 0:01:17]} 21. Rxd6 {[%clk 0:01:40]}  Bg5 {[%clk 0:00:50]} 22. Rfd1 {[%clk 0:01:29]}  Bxe3 {[%clk 0:00:49]} 23. Qxe3 {[%clk 0:01:28]}  Qxe3 {[%clk 0:00:49]} 24. fxe3 {[%clk 0:01:26]}  Bxc4 {[%clk 0:00:49]} 0-1


[Site "https://www.chess.com"]

[Event "Titled Tuesday Blitz June 20 Early 2023"]
[White "Vifleemskaia, Svetlana"]
[Black "Winkels, Marcel"]
[WhiteFideId "4129490"]
[BlackFideId "1003887"]
[WhiteElo "1930"]
[BlackElo "1900"]
[Result "1-0"]
[Round "6"]
[TimeControl "180+2"]
[Date "2023.06.20"]
[WhiteClock "0:00:53"]
[BlackClock "0:00:40"]
[Board "185"]

1. d4 {[%clk 0:02:34]}  Nf6 {[%clk 0:02:57]} 2. c4 {[%clk 0:02:34]}  g6 {[%clk 0:02:57]} 3. Nc3 {[%clk 0:02:34]}  d5 {[%clk 0:02:57]} 4. cxd5 {[%clk 0:02:34]}  Nxd5 {[%clk 0:02:58]} 5. Bd2 {[%clk 0:02:35]}  Bg7 {[%clk 0:02:54]} 6. e4 {[%clk 0:02:35]}  Nxc3 {[%clk 0:02:54]} 7. Bxc3 {[%clk 0:02:35]}  Nc6 {[%clk 0:02:52]} 8. d5 {[%clk 0:02:33]}  Bxc3+ {[%clk 0:02:36]} 9. bxc3 {[%clk 0:02:34]}  Ne5 {[%clk 0:02:36]} 10. Qd4 {[%clk 0:02:22]}  f6 {[%clk 0:02:34]} 11. f4 {[%clk 0:02:20]}  Ng4 {[%clk 0:02:23]} 12. h3 {[%clk 0:02:16]}  Nh6 {[%clk 0:02:19]} 13. Nf3 {[%clk 0:02:11]}  O-O {[%clk 0:02:18]} 14. Bc4 {[%clk 0:02:09]}  Nf7 {[%clk 0:02:06]} 15. O-O {[%clk 0:02:01]}  Kg7 {[%clk 0:02:05]} 16. Rad1 {[%clk 0:01:56]}  Qd6 {[%clk 0:01:54]} 17. e5 {[%clk 0:01:42]}  Qb6 {[%clk 0:01:53]} 18. Rfe1 {[%clk 0:01:23]}  Qxd4+ {[%clk 0:01:49]} 19. Nxd4 {[%clk 0:01:15]}  fxe5 {[%clk 0:01:41]} 20. fxe5 {[%clk 0:01:14]}  Nh6 {[%clk 0:01:40]} 21. g4 {[%clk 0:01:13]}  Bd7 {[%clk 0:01:33]} 22. Rd2 {[%clk 0:01:04]}  Rad8 {[%clk 0:01:30]} 23. Rf2 {[%clk 0:01:01]}  Rxf2 {[%clk 0:01:09]} 24. Kxf2 {[%clk 0:01:02]}  Rf8+ {[%clk 0:01:09]} 25. Kg3 {[%clk 0:01:01]}  Nf7 {[%clk 0:01:06]} 26. e6 {[%clk 0:00:57]}  Nd6 {[%clk 0:01:06]} 27. exd7 {[%clk 0:00:57]}  Nxc4 {[%clk 0:00:40]} 28. Ne6+ {[%clk 0:00:53]} 1-0


[Site "https://www.chess.com"]

[Event "Titled Tuesday Blitz June 20 Early 2023"]
[White "Sailer, Mike"]
[Black "Mayaud, Raphael"]
[WhiteFideId "2012901"]
[BlackFideId "627151"]
[WhiteElo "2109"]
[BlackElo "2191"]
[Result "1-0"]
[Round "6"]
[TimeControl "180+2"]
[Date "2023.06.20"]
[WhiteClock "0:00:04"]
[BlackClock "0:00:04"]
[Board "186"]

1. d4 {[%clk 0:02:59]}  Nf6 {[%clk 0:02:55]} 2. Nc3 {[%clk 0:02:59]}  d5 {[%clk 0:02:55]} 3. Bf4 {[%clk 0:02:59]}  a6 {[%clk 0:02:45]} 4. e3 {[%clk 0:02:53]}  Bf5 {[%clk 0:02:45]} 5. f3 {[%clk 0:02:48]}  e6 {[%clk 0:02:44]} 6. g4 {[%clk 0:02:47]}  Bg6 {[%clk 0:02:44]} 7. h4 {[%clk 0:02:47]}  h5 {[%clk 0:02:45]} 8. g5 {[%clk 0:02:46]}  Nfd7 {[%clk 0:02:43]} 9. Bd3 {[%clk 0:02:46]}  Bxd3 {[%clk 0:02:42]} 10. Qxd3 {[%clk 0:02:46]}  g6 {[%clk 0:02:42]} 11. Nge2 {[%clk 0:02:42]}  Bg7 {[%clk 0:02:33]} 12. O-O-O {[%clk 0:02:37]}  O-O {[%clk 0:02:28]} 13. e4 {[%clk 0:02:14]}  c6 {[%clk 0:02:28]} 14. Be3 {[%clk 0:02:06]}  b5 {[%clk 0:02:28]} 15. Nf4 {[%clk 0:02:04]}  b4 {[%clk 0:02:19]} 16. Nce2 {[%clk 0:02:04]}  e5 {[%clk 0:02:13]} 17. Nxh5 {[%clk 0:01:51]}  gxh5 {[%clk 0:02:12]} 18. Ng3 {[%clk 0:01:51]}  c5 {[%clk 0:01:51]} 19. dxc5 {[%clk 0:01:31]}  d4 {[%clk 0:01:49]} 20. Bd2 {[%clk 0:01:24]}  Nxc5 {[%clk 0:01:49]} 21. Qc4 {[%clk 0:01:18]}  Nbd7 {[%clk 0:01:36]} 22. Nxh5 {[%clk 0:01:12]}  Rc8 {[%clk 0:01:21]} 23. Qf1 {[%clk 0:00:53]}  Qa5 {[%clk 0:00:57]} 24. Kb1 {[%clk 0:00:45]}  Na4 {[%clk 0:00:58]} 25. Nxg7 {[%clk 0:00:37]}  Nc3+ {[%clk 0:00:45]} 26. bxc3 {[%clk 0:00:27]}  bxc3 {[%clk 0:00:43]} 27. Bc1 {[%clk 0:00:26]}  Rb8+ {[%clk 0:00:33]} 28. Ka1 {[%clk 0:00:26]}  Rb2 {[%clk 0:00:32]} 29. Bxb2 {[%clk 0:00:23]}  cxb2+ {[%clk 0:00:31]} 30. Kb1 {[%clk 0:00:19]}  Kxg7 {[%clk 0:00:29]} 31. h5 {[%clk 0:00:13]}  Nc5 {[%clk 0:00:29]} 32. g6 {[%clk 0:00:11]}  Na4 {[%clk 0:00:26]} 33. Rd3 {[%clk 0:00:11]}  Nc3+ {[%clk 0:00:20]} 34. Rxc3 {[%clk 0:00:11]}  Qxc3 {[%clk 0:00:21]} 35. h6+ {[%clk 0:00:10]}  Kg8 {[%clk 0:00:17]} 36. Qg2 {[%clk 0:00:07]}  f5 {[%clk 0:00:14]} 37. g7 {[%clk 0:00:05]}  Kf7 {[%clk 0:00:08]} 38. gxf8=Q+ {[%clk 0:00:05]}  Kxf8 {[%clk 0:00:09]} 39. Qg7+ {[%clk 0:00:04]}  Ke8 {[%clk 0:00:04]} 40. h7 {[%clk 0:00:04]} 1-0


[Site "https://www.chess.com"]

[Event "Titled Tuesday Blitz June 20 Early 2023"]
[White "Ardila, Oscar Humberto"]
[Black "Baruch, Liam"]
[WhiteFideId "4404742"]
[BlackFideId "14322064"]
[WhiteElo "1912"]
[BlackElo "2115"]
[Result "1/2-1/2"]
[Round "6"]
[TimeControl "180+2"]
[Date "2023.06.20"]
[WhiteClock "0:00:06"]
[BlackClock "0:00:09"]
[Board "187"]

1. d4 {[%clk 0:02:55]}  d5 {[%clk 0:02:59]} 2. c4 {[%clk 0:02:55]}  e6 {[%clk 0:03:00]} 3. Nc3 {[%clk 0:02:55]}  Nf6 {[%clk 0:03:00]} 4. Bg5 {[%clk 0:02:55]}  Be7 {[%clk 0:03:01]} 5. e3 {[%clk 0:02:55]}  h6 {[%clk 0:03:01]} 6. Bh4 {[%clk 0:02:55]}  O-O {[%clk 0:03:01]} 7. Nf3 {[%clk 0:02:55]}  b6 {[%clk 0:03:02]} 8. cxd5 {[%clk 0:02:55]}  Nxd5 {[%clk 0:03:02]} 9. Bxe7 {[%clk 0:02:54]}  Qxe7 {[%clk 0:03:01]} 10. Nxd5 {[%clk 0:02:54]}  exd5 {[%clk 0:03:02]} 11. Bd3 {[%clk 0:02:54]}  Be6 {[%clk 0:03:02]} 12. h3 {[%clk 0:02:54]}  c5 {[%clk 0:03:02]} 13. O-O {[%clk 0:02:54]}  c4 {[%clk 0:03:02]} 14. Bc2 {[%clk 0:02:51]}  f5 {[%clk 0:02:43]} 15. Ne5 {[%clk 0:02:48]}  Rc8 {[%clk 0:02:37]} 16. Qh5 {[%clk 0:02:45]}  Qf6 {[%clk 0:02:35]} 17. f4 {[%clk 0:02:26]}  Nc6 {[%clk 0:02:29]} 18. Rf3 {[%clk 0:02:23]}  Nb4 {[%clk 0:02:12]} 19. Ba4 {[%clk 0:02:15]}  a6 {[%clk 0:02:09]} 20. Rg3 {[%clk 0:02:07]}  Bf7 {[%clk 0:02:01]} 21. Nxf7 {[%clk 0:01:50]}  Qxf7 {[%clk 0:02:02]} 22. Qxh6 {[%clk 0:01:49]}  b5 {[%clk 0:02:02]} 23. Bd1 {[%clk 0:01:47]}  Rc6 {[%clk 0:02:01]} 24. Qg5 {[%clk 0:01:45]}  Qf6 {[%clk 0:01:48]} 25. a4 {[%clk 0:01:38]}  bxa4 {[%clk 0:01:32]} 26. Bxa4 {[%clk 0:01:37]}  Qxg5 {[%clk 0:01:30]} 27. Rxg5 {[%clk 0:01:36]}  Rf6 {[%clk 0:01:30]} 28. Bd7 {[%clk 0:01:34]}  Raf8 {[%clk 0:01:25]} 29. g4 {[%clk 0:01:33]}  Nc2 {[%clk 0:01:23]} 30. Ra5 {[%clk 0:01:21]}  fxg4 {[%clk 0:01:23]} 31. Kf2 {[%clk 0:01:12]}  gxh3 {[%clk 0:01:19]} 32. Bxh3 {[%clk 0:01:11]}  Rb8 {[%clk 0:01:03]} 33. Bg2 {[%clk 0:00:59]}  Rxb2 {[%clk 0:00:56]} 34. Bxd5+ {[%clk 0:00:59]}  Kf8 {[%clk 0:00:54]} 35. Kf3 {[%clk 0:00:50]}  Ne1+ {[%clk 0:00:54]} 36. Ke4 {[%clk 0:00:50]}  c3 {[%clk 0:00:46]} 37. Rc5 {[%clk 0:00:46]}  c2 {[%clk 0:00:43]} 38. Re5 {[%clk 0:00:45]}  c1=Q {[%clk 0:00:18]} 39. Rxc1 {[%clk 0:00:43]}  Nc2 {[%clk 0:00:18]} 40. Bb3 {[%clk 0:00:31]}  Rxb3 {[%clk 0:00:17]} 41. Rxc2 {[%clk 0:00:31]}  Rb8 {[%clk 0:00:17]} 42. Rc7 {[%clk 0:00:30]}  Rf7 {[%clk 0:00:16]} 43. Rc6 {[%clk 0:00:23]}  Ra7 {[%clk 0:00:15]} 44. Rf5+ {[%clk 0:00:22]}  Kg8 {[%clk 0:00:14]} 45. Ra5 {[%clk 0:00:22]}  Re8+ {[%clk 0:00:14]} 46. Kf3 {[%clk 0:00:22]}  Rae7 {[%clk 0:00:13]} 47. Ra3 {[%clk 0:00:20]}  a5 {[%clk 0:00:11]} 48. Ra6 {[%clk 0:00:20]}  g5 {[%clk 0:00:09]} 49. fxg5 {[%clk 0:00:18]}  Rf7+ {[%clk 0:00:09]} 50. Kg4 {[%clk 0:00:18]}  Re4+ {[%clk 0:00:09]} 51. Kh5 {[%clk 0:00:17]}  Rfe7 {[%clk 0:00:03]} 52. R3xa5 {[%clk 0:00:14]}  Kg7 {[%clk 0:00:04]} 53. Rg6+ {[%clk 0:00:13]}  Kh7 {[%clk 0:00:03]} 54. Rh6+ {[%clk 0:00:13]}  Kg7 {[%clk 0:00:04]} 55. Raa6 {[%clk 0:00:12]}  Rxe3 {[%clk 0:00:03]} 56. Rag6+ {[%clk 0:00:11]}  Kf7 {[%clk 0:00:04]} 57. Rh7+ {[%clk 0:00:11]}  Ke8 {[%clk 0:00:04]} 58. Rg8+ {[%clk 0:00:10]}  Kd7 {[%clk 0:00:05]} 59. Rxe7+ {[%clk 0:00:10]}  Kxe7 {[%clk 0:00:05]} 60. g6 {[%clk 0:00:11]}  Kf6 {[%clk 0:00:05]} 61. Rf8+ {[%clk 0:00:10]}  Kg7 {[%clk 0:00:05]} 62. Rf7+ {[%clk 0:00:10]}  Kg8 {[%clk 0:00:06]} 63. Rd7 {[%clk 0:00:10]}  Rd3 {[%clk 0:00:06]} 64. Kg5 {[%clk 0:00:10]}  Rg3+ {[%clk 0:00:06]} 65. Kf6 {[%clk 0:00:10]}  Rf3+ {[%clk 0:00:06]} 66. Ke6 {[%clk 0:00:10]}  Rg3 {[%clk 0:00:06]} 67. Kf5 {[%clk 0:00:10]}  Rf3+ {[%clk 0:00:06]} 68. Ke4 {[%clk 0:00:10]}  Rg3 {[%clk 0:00:06]} 69. Kf5 {[%clk 0:00:10]}  Rf3+ {[%clk 0:00:06]} 70. Kg4 {[%clk 0:00:10]}  Rf1 {[%clk 0:00:06]} 71. d5 {[%clk 0:00:10]}  Rg1+ {[%clk 0:00:06]} 72. Kf5 {[%clk 0:00:09]}  Rf1+ {[%clk 0:00:07]} 73. Ke5 {[%clk 0:00:09]}  Re1+ {[%clk 0:00:07]} 74. Kf5 {[%clk 0:00:08]}  Rf1+ {[%clk 0:00:07]} 75. Kg4 {[%clk 0:00:06]}  Rg1+ {[%clk 0:00:08]} 76. Kh5 {[%clk 0:00:06]}  Rh1+ {[%clk 0:00:08]} 77. Kg4 {[%clk 0:00:06]}  Rg1+ {[%clk 0:00:09]} 1/2-1/2


[Site "https://www.chess.com"]